[Event "Titled Tuesday Blitz May 03 Early 2022"]
[White "Kazakouski, Valery"]
[Black "Jakubowski, Krzysztof"]
[WhiteFideId "13507443"]
[BlackFideId "1112848"]
[WhiteElo "2524"]
[BlackElo "2365"]
[Result "1-0"]
[Round "04"]
[TimeControl "180+1"]
[Date "2022.05.03"]
[WhiteClock "0:00:04"]
[BlackClock "0:00:18"]

1. d4 {[%clk 0:02:57]}  d5 {[%clk 0:02:58]} 2. c4 {[%clk 0:02:58]}  c6 {[%clk 0:02:57]} 3. cxd5 {[%clk 0:02:58]}  cxd5 {[%clk 0:02:56]} 4. Nc3 {[%clk 0:02:59]}  Nf6 {[%clk 0:02:55]} 5. Bg5 {[%clk 0:02:59]}  e6 {[%clk 0:02:51]} 6. e3 {[%clk 0:02:59]}  a6 {[%clk 0:02:49]} 7. Bd3 {[%clk 0:02:59]}  b5 {[%clk 0:02:48]} 8. Rc1 {[%clk 0:02:59]}  Be7 {[%clk 0:02:46]} 9. f4 {[%clk 0:02:59]}  Bb7 {[%clk 0:02:44]} 10. Nf3 {[%clk 0:03:00]}  Nbd7 {[%clk 0:02:44]} 11. O-O {[%clk 0:03:00]}  Ne4 {[%clk 0:02:42]} 12. Bxe7 {[%clk 0:02:27]}  Qxe7 {[%clk 0:02:41]} 13. Nxe4 {[%clk 0:02:21]}  dxe4 {[%clk 0:02:40]} 14. Rc7 {[%clk 0:02:21]}  exf3 {[%clk 0:02:17]} 15. Rxb7 {[%clk 0:02:19]}  fxg2 {[%clk 0:02:17]} 16. Kxg2 {[%clk 0:02:16]}  O-O {[%clk 0:02:09]} 17. Qh5 {[%clk 0:02:10]}  g6 {[%clk 0:02:07]} 18. Qh6 {[%clk 0:02:09]}  Rfb8 {[%clk 0:02:05]} 19. Rxb8+ {[%clk 0:01:50]}  Rxb8 {[%clk 0:02:04]} 20. Rc1 {[%clk 0:01:51]}  Nf6 {[%clk 0:01:54]} 21. Qg5 {[%clk 0:01:44]}  Rd8 {[%clk 0:01:48]} 22. Qc5 {[%clk 0:01:40]}  Qb7+ {[%clk 0:01:44]} 23. Qc6 {[%clk 0:01:41]}  Qb8 {[%clk 0:01:38]} 24. Qxa6 {[%clk 0:01:29]}  Nd5 {[%clk 0:01:32]} 25. Kf3 {[%clk 0:01:28]}  Kg7 {[%clk 0:01:29]} 26. a3 {[%clk 0:01:14]}  Nxf4 {[%clk 0:01:21]} 27. exf4 {[%clk 0:00:56]}  Rxd4 {[%clk 0:01:20]} 28. Be4 {[%clk 0:00:47]}  g5 {[%clk 0:01:04]} 29. fxg5 {[%clk 0:00:37]}  Qxh2 {[%clk 0:01:05]} 30. Qc6 {[%clk 0:00:21]}  Rd2 {[%clk 0:00:52]} 31. Kg4 {[%clk 0:00:09]}  Qe2+ {[%clk 0:00:38]} 32. Bf3 {[%clk 0:00:09]}  Rd4+ {[%clk 0:00:38]} 33. Kg3 {[%clk 0:00:09]}  Qe5+ {[%clk 0:00:38]} 34. Kh3 {[%clk 0:00:08]}  Qf5+ {[%clk 0:00:32]} 35. Kg2 {[%clk 0:00:08]}  Rd2+ {[%clk 0:00:25]} 36. Kf1 {[%clk 0:00:06]}  Qxg5 {[%clk 0:00:19]} 37. Qc3+ {[%clk 0:00:05]}  e5 {[%clk 0:00:19]} 38. Rc2 {[%clk 0:00:04]}  Rd4 {[%clk 0:00:18]} 39. Rg2 {[%clk 0:00:04]} 1-0


[Site "https://www.chess.com"]

[Event "Titled Tuesday Blitz May 03 Early 2022"]
[White "Kim, Sergey"]
[Black "Gharibyan, Mamikon"]
[WhiteFideId "13700570"]
[BlackFideId "13308300"]
[WhiteElo "2575"]
[BlackElo "2254"]
[Result "0-1"]
[Round "04"]
[TimeControl "180+1"]
[Date "2022.05.03"]
[WhiteClock "0:00:05"]
[BlackClock "0:00:20"]

1. d4 {[%clk 0:03:00]}  d5 {[%clk 0:02:59]} 2. c4 {[%clk 0:03:00]}  e6 {[%clk 0:02:59]} 3. Nc3 {[%clk 0:03:00]}  Nf6 {[%clk 0:02:59]} 4. Nf3 {[%clk 0:03:00]}  Bb4 {[%clk 0:02:58]} 5. e3 {[%clk 0:03:00]}  O-O {[%clk 0:02:58]} 6. Bd3 {[%clk 0:03:00]}  c5 {[%clk 0:02:57]} 7. O-O {[%clk 0:02:59]}  Nc6 {[%clk 0:02:58]} 8. a3 {[%clk 0:02:54]}  Ba5 {[%clk 0:02:58]} 9. cxd5 {[%clk 0:02:49]}  exd5 {[%clk 0:02:55]} 10. h3 {[%clk 0:02:48]}  Re8 {[%clk 0:02:49]} 11. Bd2 {[%clk 0:02:39]}  cxd4 {[%clk 0:02:48]} 12. exd4 {[%clk 0:02:39]}  h6 {[%clk 0:02:45]} 13. Qc2 {[%clk 0:02:27]}  Be6 {[%clk 0:02:38]} 14. Rfe1 {[%clk 0:02:23]}  Rc8 {[%clk 0:02:36]} 15. Qb3 {[%clk 0:02:18]}  Bb6 {[%clk 0:02:35]} 16. Be3 {[%clk 0:02:08]}  Na5 {[%clk 0:02:32]} 17. Qc2 {[%clk 0:02:01]}  Nc4 {[%clk 0:02:33]} 18. Bc1 {[%clk 0:02:00]}  Nd6 {[%clk 0:02:30]} 19. Bf4 {[%clk 0:01:55]}  Nde4 {[%clk 0:02:28]} 20. Rac1 {[%clk 0:01:42]}  Bc7 {[%clk 0:01:57]} 21. Ne5 {[%clk 0:01:32]}  Nxc3 {[%clk 0:01:51]} 22. bxc3 {[%clk 0:01:31]}  Bd6 {[%clk 0:01:49]} 23. Qb3 {[%clk 0:01:29]}  Qa5 {[%clk 0:01:42]} 24. a4 {[%clk 0:01:25]}  Rc7 {[%clk 0:01:40]} 25. Ng6 {[%clk 0:01:10]}  Rd8 {[%clk 0:01:03]} 26. Bxd6 {[%clk 0:01:08]}  Rxd6 {[%clk 0:01:04]} 27. Ne5 {[%clk 0:01:03]}  Rd8 {[%clk 0:00:56]} 28. Rc2 {[%clk 0:00:46]}  Rdc8 {[%clk 0:00:53]} 29. Rec1 {[%clk 0:00:46]}  Nd7 {[%clk 0:00:48]} 30. Nxd7 {[%clk 0:00:42]}  Rxd7 {[%clk 0:00:48]} 31. Qb4 {[%clk 0:00:34]}  Qd8 {[%clk 0:00:42]} 32. Bf1 {[%clk 0:00:30]}  Qg5 {[%clk 0:00:40]} 33. Kh1 {[%clk 0:00:27]}  Rdc7 {[%clk 0:00:40]} 34. a5 {[%clk 0:00:26]}  h5 {[%clk 0:00:40]} 35. Qd6 {[%clk 0:00:25]}  h4 {[%clk 0:00:34]} 36. Rb1 {[%clk 0:00:20]}  Rxc3 {[%clk 0:00:31]} 37. Rxc3 {[%clk 0:00:20]}  Rxc3 {[%clk 0:00:32]} 38. Qb8+ {[%clk 0:00:20]}  Kh7 {[%clk 0:00:31]} 39. Qxb7 {[%clk 0:00:17]}  Qf4 {[%clk 0:00:24]} 40. Qb2 {[%clk 0:00:06]}  Qxd4 {[%clk 0:00:20]} 41. Rc1 {[%clk 0:00:05]}  Rxh3+ {[%clk 0:00:20]} 0-1


[Site "https://www.chess.com"]

[Event "Titled Tuesday Blitz May 03 Early 2022"]
[White "Kohler, Aran"]
[Black "Melian, Juan Sebastian"]
[WhiteFideId "1002856"]
[BlackFideId "3706575"]
[WhiteElo "2297"]
[BlackElo "1842"]
[Result "1/2-1/2"]
[Round "04"]
[TimeControl "180+1"]
[Date "2022.05.03"]
[WhiteClock "0:00:07"]
[BlackClock "0:00:15"]

1. e4 {[%clk 0:02:59]}  c6 {[%clk 0:02:58]} 2. d4 {[%clk 0:02:57]}  d5 {[%clk 0:02:58]} 3. e5 {[%clk 0:02:58]}  Bf5 {[%clk 0:02:55]} 4. Nc3 {[%clk 0:02:58]}  e6 {[%clk 0:02:52]} 5. g4 {[%clk 0:02:57]}  Bg6 {[%clk 0:02:52]} 6. Nge2 {[%clk 0:02:58]}  h6 {[%clk 0:02:47]} 7. Be3 {[%clk 0:02:56]}  Nd7 {[%clk 0:02:46]} 8. f4 {[%clk 0:02:51]}  c5 {[%clk 0:02:44]} 9. f5 {[%clk 0:02:35]}  exf5 {[%clk 0:02:32]} 10. Nf4 {[%clk 0:02:35]}  cxd4 {[%clk 0:02:24]} 11. Nxg6 {[%clk 0:02:18]}  fxg6 {[%clk 0:02:15]} 12. Bxd4 {[%clk 0:02:11]}  Qh4+ {[%clk 0:02:08]} 13. Bf2 {[%clk 0:02:11]}  Qxg4 {[%clk 0:02:08]} 14. Qxd5 {[%clk 0:02:05]}  Ne7 {[%clk 0:01:55]} 15. Qxb7 {[%clk 0:01:43]}  Rb8 {[%clk 0:01:51]} 16. Qxa7 {[%clk 0:01:43]}  Rxb2 {[%clk 0:01:46]} 17. e6 {[%clk 0:01:34]}  Nb8 {[%clk 0:01:02]} 18. Bb5+ {[%clk 0:01:20]}  Rxb5 {[%clk 0:01:00]} 19. Nxb5 {[%clk 0:01:20]}  Qe4+ {[%clk 0:00:58]} 20. Kd2 {[%clk 0:01:19]}  Qd5+ {[%clk 0:00:51]} 21. Nd4 {[%clk 0:01:10]}  Nec6 {[%clk 0:00:48]} 22. c3 {[%clk 0:01:02]}  Be7 {[%clk 0:00:43]} 23. Qa4 {[%clk 0:00:45]}  O-O {[%clk 0:00:41]} 24. Rhe1 {[%clk 0:00:42]}  f4 {[%clk 0:00:18]} 25. Kc2 {[%clk 0:00:40]}  f3 {[%clk 0:00:18]} 26. Rad1 {[%clk 0:00:37]}  Rc8 {[%clk 0:00:17]} 27. Nxc6 {[%clk 0:00:36]}  Qxc6 {[%clk 0:00:14]} 28. Qxc6 {[%clk 0:00:36]}  Nxc6 {[%clk 0:00:15]} 29. Rd7 {[%clk 0:00:35]}  g5 {[%clk 0:00:15]} 30. h3 {[%clk 0:00:29]}  h5 {[%clk 0:00:15]} 31. Re4 {[%clk 0:00:27]}  Kh7 {[%clk 0:00:14]} 32. Kd3 {[%clk 0:00:23]}  g4 {[%clk 0:00:13]} 33. hxg4 {[%clk 0:00:22]}  hxg4 {[%clk 0:00:13]} 34. Bd4 {[%clk 0:00:21]}  g3 {[%clk 0:00:11]} 35. Rg4 {[%clk 0:00:17]}  f2 {[%clk 0:00:12]} 36. Ke2 {[%clk 0:00:17]}  Nxd4+ {[%clk 0:00:12]} 37. Rgxd4 {[%clk 0:00:13]}  Bf6 {[%clk 0:00:12]} 38. Rf4 {[%clk 0:00:12]}  Rxc3 {[%clk 0:00:12]} 39. Rxf6 {[%clk 0:00:12]}  Rc2+ {[%clk 0:00:13]} 40. Kf1 {[%clk 0:00:12]}  Rc1+ {[%clk 0:00:12]} 41. Kg2 {[%clk 0:00:12]}  Rg1+ {[%clk 0:00:13]} 42. Kh3 {[%clk 0:00:12]}  f1=Q+ {[%clk 0:00:11]} 43. Rxf1 {[%clk 0:00:12]}  Rxf1 {[%clk 0:00:11]} 44. Kxg3 {[%clk 0:00:11]}  Re1 {[%clk 0:00:12]} 45. e7 {[%clk 0:00:11]}  Kg6 {[%clk 0:00:11]} 46. a4 {[%clk 0:00:11]}  Kf7 {[%clk 0:00:10]} 47. a5 {[%clk 0:00:11]}  Ra1 {[%clk 0:00:10]} 48. e8=Q+ {[%clk 0:00:10]}  Kxe8 {[%clk 0:00:10]} 49. Rd5 {[%clk 0:00:11]}  Ke7 {[%clk 0:00:10]} 50. Kf4 {[%clk 0:00:11]}  Ke6 {[%clk 0:00:10]} 51. Rb5 {[%clk 0:00:10]}  Kd6 {[%clk 0:00:10]} 52. Rb6+ {[%clk 0:00:09]}  Kc7 {[%clk 0:00:09]} 53. Rb5 {[%clk 0:00:08]}  Kc6 {[%clk 0:00:10]} 54. Rg5 {[%clk 0:00:07]}  Kb7 {[%clk 0:00:10]} 55. Ke3 {[%clk 0:00:07]}  Ka6 {[%clk 0:00:10]} 56. Kd4 {[%clk 0:00:06]}  Rxa5 {[%clk 0:00:10]} 57. Rg6+ {[%clk 0:00:07]}  Kb5 {[%clk 0:00:10]} 58. Rxg7 {[%clk 0:00:08]}  Ka4 {[%clk 0:00:10]} 59. Kc4 {[%clk 0:00:08]}  Ra8 {[%clk 0:00:10]} 60. Rg1 {[%clk 0:00:08]}  Rc8+ {[%clk 0:00:11]} 61. Kd5 {[%clk 0:00:08]}  Kb3 {[%clk 0:00:11]} 62. Rb1+ {[%clk 0:00:08]}  Ka2 {[%clk 0:00:12]} 63. Rb6 {[%clk 0:00:08]}  Rc2 {[%clk 0:00:12]} 64. Rc6 {[%clk 0:00:05]}  Rd2+ {[%clk 0:00:12]} 65. Kc5 {[%clk 0:00:04]}  Kb3 {[%clk 0:00:13]} 66. Kb6 {[%clk 0:00:04]}  Kb4 {[%clk 0:00:13]} 67. Kb7 {[%clk 0:00:03]}  Rg2 {[%clk 0:00:12]} 68. Rc7 {[%clk 0:00:04]}  Kb5 {[%clk 0:00:13]} 69. Ka7 {[%clk 0:00:03]}  Rg6 {[%clk 0:00:12]} 70. Kb7 {[%clk 0:00:03]}  Rg8 {[%clk 0:00:10]} 71. Ka7 {[%clk 0:00:03]}  Rg1 {[%clk 0:00:10]} 72. Kb7 {[%clk 0:00:04]}  Ra1 {[%clk 0:00:11]} 73. Rf7 {[%clk 0:00:04]}  Re1 {[%clk 0:00:11]} 74. Rf5+ {[%clk 0:00:04]}  Kc4 {[%clk 0:00:11]} 75. Rf7 {[%clk 0:00:05]}  Kd5 {[%clk 0:00:12]} 76. Rg7 {[%clk 0:00:04]}  Kd6 {[%clk 0:00:12]} 77. Rg6+ {[%clk 0:00:04]}  Ke7 {[%clk 0:00:13]} 78. Rb6 {[%clk 0:00:04]}  Kd7 {[%clk 0:00:13]} 79. Ka6 {[%clk 0:00:04]}  Kc7 {[%clk 0:00:13]} 80. Rb7+ {[%clk 0:00:02]}  Kc6 {[%clk 0:00:13]} 81. Rb6+ {[%clk 0:00:03]}  Kc5 {[%clk 0:00:13]} 82. Rb5+ {[%clk 0:00:04]}  Kc4 {[%clk 0:00:14]} 83. Rb7 {[%clk 0:00:03]}  Re6+ {[%clk 0:00:14]} 84. Ka7 {[%clk 0:00:03]}  Kc5 {[%clk 0:00:14]} 85. Rc7+ {[%clk 0:00:04]}  Kb5 {[%clk 0:00:14]} 86. Rb7+ {[%clk 0:00:04]}  Ka5 {[%clk 0:00:14]} 87. Rc7 {[%clk 0:00:05]}  Ra6+ {[%clk 0:00:14]} 88. Kb7 {[%clk 0:00:05]}  Rb6+ {[%clk 0:00:14]} 89. Kc8 {[%clk 0:00:06]}  Rb2 {[%clk 0:00:14]} 90. Ra7+ {[%clk 0:00:06]}  Kb4 {[%clk 0:00:13]} 91. Rb7+ {[%clk 0:00:07]}  Ka3 {[%clk 0:00:14]} 92. Rxb2 {[%clk 0:00:07]}  Kxb2 {[%clk 0:00:15]} 1/2-1/2


[Site "https://www.chess.com"]

[Event "Titled Tuesday Blitz May 03 Early 2022"]
[White "Kollars, Dmitrij"]
[Black "Seo, Jung Min"]
[WhiteFideId "12909572"]
[BlackFideId "1734687"]
[WhiteElo "2584"]
[BlackElo "2401"]
[Result "1-0"]
[Round "04"]
[TimeControl "180+1"]
[Date "2022.05.03"]
[WhiteClock "0:00:20"]
[BlackClock "0:00:57"]

1. e4 {[%clk 0:03:00]}  c6 {[%clk 0:02:59]} 2. Nf3 {[%clk 0:02:59]}  d5 {[%clk 0:03:00]} 3. d3 {[%clk 0:03:00]}  dxe4 {[%clk 0:02:59]} 4. dxe4 {[%clk 0:03:01]}  Qxd1+ {[%clk 0:02:59]} 5. Kxd1 {[%clk 0:03:02]}  Nf6 {[%clk 0:02:57]} 6. Nfd2 {[%clk 0:02:59]}  g5 {[%clk 0:02:57]} 7. a4 {[%clk 0:02:58]}  h5 {[%clk 0:02:55]} 8. Nc3 {[%clk 0:02:58]}  Nbd7 {[%clk 0:02:52]} 9. Nc4 {[%clk 0:02:55]}  Rg8 {[%clk 0:02:49]} 10. f3 {[%clk 0:02:44]}  Nb6 {[%clk 0:02:48]} 11. Be3 {[%clk 0:02:39]}  Nxc4 {[%clk 0:02:45]} 12. Bxc4 {[%clk 0:02:40]}  Nd7 {[%clk 0:02:44]} 13. Ke2 {[%clk 0:02:37]}  Ne5 {[%clk 0:02:44]} 14. Bb3 {[%clk 0:02:38]}  Rg6 {[%clk 0:02:35]} 15. a5 {[%clk 0:02:22]}  Be6 {[%clk 0:02:31]} 16. Bxe6 {[%clk 0:02:21]}  Rxe6 {[%clk 0:02:30]} 17. Bxg5 {[%clk 0:02:14]}  Rg6 {[%clk 0:02:30]} 18. Bf4 {[%clk 0:02:14]}  Nc4 {[%clk 0:02:25]} 19. g3 {[%clk 0:02:05]}  Bg7 {[%clk 0:02:18]} 20. Nd1 {[%clk 0:01:53]}  O-O-O {[%clk 0:02:14]} 21. Ra4 {[%clk 0:01:31]}  Nxb2 {[%clk 0:02:12]} 22. Nxb2 {[%clk 0:01:31]}  Bxb2 {[%clk 0:02:12]} 23. Rb1 {[%clk 0:01:13]}  Bd4 {[%clk 0:02:11]} 24. Rab4 {[%clk 0:01:13]}  b6 {[%clk 0:02:11]} 25. axb6 {[%clk 0:01:12]}  axb6 {[%clk 0:02:09]} 26. Be3 {[%clk 0:01:10]}  Bxe3 {[%clk 0:02:04]} 27. Kxe3 {[%clk 0:01:11]}  b5 {[%clk 0:02:02]} 28. c4 {[%clk 0:01:09]}  bxc4 {[%clk 0:02:02]} 29. Rxc4 {[%clk 0:01:03]}  Rgd6 {[%clk 0:02:01]} 30. Rb3 {[%clk 0:00:54]}  Kd7 {[%clk 0:01:51]} 31. Rc5 {[%clk 0:00:54]}  Rh8 {[%clk 0:01:50]} 32. Rb7+ {[%clk 0:00:50]}  Ke6 {[%clk 0:01:49]} 33. Kf4 {[%clk 0:00:48]}  f6 {[%clk 0:01:44]} 34. h4 {[%clk 0:00:48]}  Rh7 {[%clk 0:01:42]} 35. Rc7 {[%clk 0:00:48]}  Rh8 {[%clk 0:01:41]} 36. R7xc6 {[%clk 0:00:47]}  Rxc6 {[%clk 0:01:42]} 37. Rxc6+ {[%clk 0:00:48]}  Kf7 {[%clk 0:01:42]} 38. e5 {[%clk 0:00:46]}  fxe5+ {[%clk 0:01:41]} 39. Kxe5 {[%clk 0:00:47]}  Rg8 {[%clk 0:01:35]} 40. Kf4 {[%clk 0:00:47]}  e6 {[%clk 0:01:30]} 41. g4 {[%clk 0:00:44]}  Rh8 {[%clk 0:01:21]} 42. Kg5 {[%clk 0:00:39]}  hxg4 {[%clk 0:01:15]} 43. fxg4 {[%clk 0:00:40]}  e5 {[%clk 0:01:15]} 44. h5 {[%clk 0:00:34]}  e4 {[%clk 0:01:15]} 45. Kf4 {[%clk 0:00:30]}  Re8 {[%clk 0:01:14]} 46. Rc3 {[%clk 0:00:28]}  Kf6 {[%clk 0:01:10]} 47. Re3 {[%clk 0:00:26]}  Re5 {[%clk 0:01:06]} 48. Rxe4 {[%clk 0:00:26]}  Ra5 {[%clk 0:01:06]} 49. Rb4 {[%clk 0:00:24]}  Ra6 {[%clk 0:00:59]} 50. g5+ {[%clk 0:00:24]}  Kg7 {[%clk 0:00:59]} 51. Kg4 {[%clk 0:00:20]}  Rc6 {[%clk 0:00:58]} 52. Rb7+ {[%clk 0:00:20]}  Kg8 {[%clk 0:00:58]} 53. h6 {[%clk 0:00:20]}  Ra6 {[%clk 0:00:57]} 54. Kh5 {[%clk 0:00:20]}  Rc6 {[%clk 0:00:57]} 55. Rb8+ {[%clk 0:00:20]}  Kh7 {[%clk 0:00:57]} 56. g6+ {[%clk 0:00:20]} 1-0


[Site "https://www.chess.com"]

[Event "Titled Tuesday Blitz May 03 Early 2022"]
[White "Kozak, Adam"]
[Black "Nakamura, Hikaru"]
[WhiteFideId "753246"]
[BlackFideId "2016192"]
[WhiteElo "2459"]
[BlackElo "2850"]
[Result "0-1"]
[Round "04"]
[TimeControl "180+1"]
[Date "2022.05.03"]
[WhiteClock "0:00:01"]
[BlackClock "0:00:09"]

1. Nf3 {[%clk 0:02:19]}  d5 {[%clk 0:02:59]} 2. g3 {[%clk 0:02:18]}  g6 {[%clk 0:02:59]} 3. Bg2 {[%clk 0:02:18]}  Bg7 {[%clk 0:02:59]} 4. d4 {[%clk 0:02:19]}  Nd7 {[%clk 0:02:59]} 5. c4 {[%clk 0:02:19]}  dxc4 {[%clk 0:02:59]} 6. O-O {[%clk 0:02:19]}  Ngf6 {[%clk 0:02:59]} 7. Nc3 {[%clk 0:02:16]}  O-O {[%clk 0:02:51]} 8. a4 {[%clk 0:02:14]}  a5 {[%clk 0:02:51]} 9. e4 {[%clk 0:02:13]}  Nb6 {[%clk 0:02:34]} 10. Qe2 {[%clk 0:02:04]}  Bg4 {[%clk 0:02:33]} 11. Be3 {[%clk 0:02:03]}  Nfd7 {[%clk 0:02:27]} 12. Rfd1 {[%clk 0:01:59]}  c6 {[%clk 0:02:17]} 13. h3 {[%clk 0:01:59]}  Bxf3 {[%clk 0:02:17]} 14. Bxf3 {[%clk 0:02:00]}  Qc7 {[%clk 0:02:14]} 15. Bg2 {[%clk 0:01:57]}  Rad8 {[%clk 0:02:12]} 16. h4 {[%clk 0:01:57]}  h5 {[%clk 0:02:06]} 17. d5 {[%clk 0:01:35]}  cxd5 {[%clk 0:01:58]} 18. exd5 {[%clk 0:01:35]}  Nc8 {[%clk 0:01:51]} 19. Nb5 {[%clk 0:01:28]}  Qb8 {[%clk 0:01:50]} 20. Qxc4 {[%clk 0:01:27]}  Nd6 {[%clk 0:01:46]} 21. Qb3 {[%clk 0:01:24]}  Nf5 {[%clk 0:01:40]} 22. Ba7 {[%clk 0:00:52]}  Qe5 {[%clk 0:01:40]} 23. Re1 {[%clk 0:00:36]}  Qxb2 {[%clk 0:01:35]} 24. Qxb2 {[%clk 0:00:37]}  Bxb2 {[%clk 0:01:35]} 25. Rab1 {[%clk 0:00:37]}  Bf6 {[%clk 0:01:35]} 26. d6 {[%clk 0:00:34]}  b6 {[%clk 0:01:26]} 27. dxe7 {[%clk 0:00:31]}  Bxe7 {[%clk 0:01:27]} 28. Bh3 {[%clk 0:00:27]}  Bc5 {[%clk 0:01:23]} 29. Kg2 {[%clk 0:00:12]}  Nf6 {[%clk 0:01:17]} 30. Rbd1 {[%clk 0:00:06]}  Ng4 {[%clk 0:01:07]} 31. Bxg4 {[%clk 0:00:07]}  hxg4 {[%clk 0:01:08]} 32. Nc3 {[%clk 0:00:04]}  Bb4 {[%clk 0:01:01]} 33. Rxd8 {[%clk 0:00:02]}  Rxd8 {[%clk 0:01:02]} 34. Rc1 {[%clk 0:00:02]}  Rd6 {[%clk 0:00:36]} 35. Ne4 {[%clk 0:00:02]}  Re6 {[%clk 0:00:37]} 36. Ng5 {[%clk 0:00:03]}  Re8 {[%clk 0:00:33]} 37. Bxb6 {[%clk 0:00:03]}  f6 {[%clk 0:00:33]} 38. Rc6 {[%clk 0:00:01]}  fxg5 {[%clk 0:00:25]} 39. Rxg6+ {[%clk 0:00:02]}  Kh7 {[%clk 0:00:20]} 40. Rxg5 {[%clk 0:00:03]}  Nh6 {[%clk 0:00:21]} 41. Bxa5 {[%clk 0:00:03]}  Bxa5 {[%clk 0:00:17]} 42. Rxa5 {[%clk 0:00:04]}  Re2 {[%clk 0:00:18]} 43. Rb5 {[%clk 0:00:04]}  Ra2 {[%clk 0:00:19]} 44. a5 {[%clk 0:00:05]}  Kg6 {[%clk 0:00:19]} 45. Rg5+ {[%clk 0:00:04]}  Kf6 {[%clk 0:00:20]} 46. Rb5 {[%clk 0:00:03]}  Nf5 {[%clk 0:00:20]} 47. Kf1 {[%clk 0:00:02]}  Ra1+ {[%clk 0:00:19]} 48. Kg2 {[%clk 0:00:02]}  Ra2 {[%clk 0:00:20]} 49. Rb4 {[%clk 0:00:02]}  Ke5 {[%clk 0:00:18]} 50. Rf4 {[%clk 0:00:02]}  Nh6 {[%clk 0:00:16]} 51. Rf8 {[%clk 0:00:01]}  Rxa5 {[%clk 0:00:16]} 52. Kg1 {[%clk 0:00:01]}  Ra1+ {[%clk 0:00:16]} 53. Kg2 {[%clk 0:00:02]}  Ra2 {[%clk 0:00:17]} 54. Kg1 {[%clk 0:00:02]}  Nf5 {[%clk 0:00:17]} 55. Rg8 {[%clk 0:00:03]}  Ra4 {[%clk 0:00:17]} 56. Rg5 {[%clk 0:00:03]}  Kf6 {[%clk 0:00:17]} 57. Rg8 {[%clk 0:00:03]}  Nd4 {[%clk 0:00:17]} 58. Kg2 {[%clk 0:00:02]}  Nf3 {[%clk 0:00:17]} 59. Rf8+ {[%clk 0:00:02]}  Ke5 {[%clk 0:00:18]} 60. Rf4 {[%clk 0:00:02]}  Rxf4 {[%clk 0:00:16]} 61. gxf4+ {[%clk 0:00:03]}  Kxf4 {[%clk 0:00:16]} 62. h5 {[%clk 0:00:03]}  Nh4+ {[%clk 0:00:12]} 63. Kh2 {[%clk 0:00:03]}  Nf5 {[%clk 0:00:11]} 64. Kg2 {[%clk 0:00:03]}  Kg5 {[%clk 0:00:09]} 65. f3 {[%clk 0:00:02]}  Nh4+ {[%clk 0:00:08]} 66. Kg3 {[%clk 0:00:02]}  gxf3 {[%clk 0:00:09]} 67. h6 {[%clk 0:00:01]}  Kxh6 {[%clk 0:00:09]} 0-1


[Site "https://www.chess.com"]

[Event "Titled Tuesday Blitz May 03 Early 2022"]
[White "Krstulovic, Alex"]
[Black "Leiva, Gianmarco"]
[WhiteFideId "760056"]
[BlackFideId "3804399"]
[WhiteElo "2193"]
[BlackElo "2323"]
[Result "0-1"]
[Round "04"]
[TimeControl "180+1"]
[Date "2022.05.03"]
[WhiteClock "0:01:30"]
[BlackClock "0:02:03"]

1. e4 {[%clk 0:03:00]}  c6 {[%clk 0:02:57]} 2. d4 {[%clk 0:02:59]}  d5 {[%clk 0:02:57]} 3. exd5 {[%clk 0:02:59]}  cxd5 {[%clk 0:02:58]} 4. Bd3 {[%clk 0:02:59]}  Nc6 {[%clk 0:02:56]} 5. c3 {[%clk 0:02:59]}  g6 {[%clk 0:02:57]} 6. h4 {[%clk 0:02:49]}  h6 {[%clk 0:02:44]} 7. Bf4 {[%clk 0:02:43]}  Nf6 {[%clk 0:02:42]} 8. Nd2 {[%clk 0:02:43]}  Bf5 {[%clk 0:02:39]} 9. Bxf5 {[%clk 0:02:35]}  gxf5 {[%clk 0:02:39]} 10. Ngf3 {[%clk 0:02:24]}  e6 {[%clk 0:02:30]} 11. Ne5 {[%clk 0:02:17]}  Bd6 {[%clk 0:02:21]} 12. Qb3 {[%clk 0:02:15]}  Qc7 {[%clk 0:02:18]} 13. Ndf3 {[%clk 0:01:48]}  Ng4 {[%clk 0:02:13]} 14. Nxf7 {[%clk 0:01:42]}  Kxf7 {[%clk 0:02:08]} 15. Bxd6 {[%clk 0:01:39]}  Qxd6 {[%clk 0:02:08]} 16. Qxb7+ {[%clk 0:01:39]}  Ne7 {[%clk 0:02:08]} 17. O-O-O {[%clk 0:01:37]}  Rhb8 {[%clk 0:02:05]} 18. Ne5+ {[%clk 0:01:36]}  Qxe5 {[%clk 0:02:02]} 19. Qxe7+ {[%clk 0:01:30]}  Kxe7 {[%clk 0:02:02]} 20. dxe5 {[%clk 0:01:30]}  Nxf2 {[%clk 0:02:03]} 0-1


[Site "https://www.chess.com"]